bitfinex-derivatives/quotes_ETHF0:USTF0_20220108
["timestamp","ask_amount","ask_price","bid_price","bid_amount"]
[1641676438371,0.66197,3046.4,3045.8,2.645577]
[1641676438372,0.89345701,3046.3,3045.8,2.645577]
[1641676438773,0.89345701,3046.3,3045.8,4.141577]
[1641676438975,2.00479,3046.5,3046.2,1.496]
[1641676439176,2.00479,3046.8,3046.4,1.496]
[1641676439374,2.00479,3046.8,3046.7,1.496]
[1641676439583,2.00479,3046.8,3046.0,1.496]
[1641676439973,2.00479,3046.8,3046.6,1.496]
[1641676440574,2.00479,3046.8,3046.7,0.640787]
[1641676441376,0.85565609,3047.1,3046.7,0.640787]
[1641676441778,2.49711811,3047.1,3046.4,2.00479]
[1641676441977,2.66676,3047.0,3046.4,2.00479]
[1641676442179,2.66676,3047.0,3045.9,1.496]
[1641676442577,2.66676,3047.0,3045.8,3.50079]
[1641676443980,2.00479,3046.6,3045.8,2.00479]
[1641676444181,4.0,3046.1,3044.6,5.414]
[1641676444382,1.64249732,3045.2,3044.6,5.414]
[1641676444580,0.66197,3045.1,3044.6,5.414]
[1641676444782,0.66197,3045.1,3043.4,18.545]
[1641676444981,0.66197,3045.1,3043.8,1.496]
[1641676445179,0.66197,3045.1,3043.9,1.496]
[1641676445180,1.60955923,3045.0,3043.9,1.496]
[1641676445679,1.60955923,3045.0,3043.4,14.17]
[1641676445879,2.00479,3044.5,3043.8,3.50079]
[1641676446081,2.73189,3044.5,3043.9,0.640787]
[1641676446683,2.73189,3044.5,3044.3,1.496]
[1641676447086,2.00479,3044.5,3044.3,1.496]
[1641676447487,2.00479,3044.5,3043.9,0.640787]
[1641676447688,2.00479,3044.5,3043.9,2.136787]
[1641676448288,2.00479,3044.5,3043.9,0.640787]
[1641676448489,2.00479,3044.5,3043.9,2.136787]
[1641676448688,2.00479,3044.5,3043.9,0.640787]
[1641676448889,2.00479,3044.5,3044.4,1.496]
[1641676450092,2.00479,3044.5,3043.9,0.640787]
[1641676450691,2.00479,3044.5,3044.4,1.496]
[1641676451391,2.00479,3044.5,3043.9,0.640787]
[1641676451593,2.00479,3044.5,3044.2,1.496]
[1641676451995,2.00479,3044.5,3043.9,0.640787]
[1641676452193,2.68069,3044.5,3043.9,1.496]
[1641676452394,2.68069,3044.5,3043.8,2.00479]
[1641676452694,0.66197,3044.4,3043.7,1.496]
[1641676453093,0.66197,3044.4,3042.8,17.6559]
[1641676453292,0.66197,3044.4,3042.7,14.17]
[1641676453495,0.66197,3044.4,3043.6,1.496]
[1641676453893,2.00479,3044.0,3043.6,1.496]
[1641676454094,0.66197,3043.9,3043.6,1.496]
[1641676455195,0.92378248,3043.8,3043.6,1.496]
[1641676455497,1.69638248,3043.8,3043.6,1.496]
[1641676455796,0.66197,3043.7,3043.6,1.496]
[1641676457199,1.55617,3043.7,3043.6,1.496]
[1641676457395,1.55617,3043.7,3042.9,2.00479]
[1641676457396,1.55617,3043.7,3043.0,1.496]
[1641676457798,1.55617,3043.7,3042.9,2.00479]
[1641676457997,2.00479,3043.3,3042.9,2.00479]
[1641676458197,0.66197,3043.2,3042.9,2.00479]
[1641676458597,0.66197,3043.2,3042.5,1.496]
[1641676458797,0.66197,3043.2,3042.3,2.00479]
[1641676459097,0.66197,3043.2,3042.5,1.496]
[1641676459298,1.51515025,3043.1,3042.5,1.496]
[1641676459497,0.66197,3043.0,3042.5,1.496]
[1641676459699,1.27447,3043.0,3042.5,2.136787]
[1641676459897,1.27447,3043.0,3042.5,0.640787]
[1641676460098,1.27447,3043.0,3042.7,1.496]
[1641676460696,1.27447,3043.0,3042.5,0.640787]
[1641676460899,1.1125,3043.0,3042.9,1.496]
[1641676461499,1.1125,3043.0,3042.7,1.496]
[1641676462304,1.1125,3043.0,3042.3,2.00479]
[1641676462499,1.6438203,3042.8,3041.8,0.08215]
[1641676462699,5.1125,3043.0,3041.8,0.08215]
[1641676462897,1.64399055,3042.7,3041.8,0.08215]
[1641676463098,17.498,3042.9,3041.8,0.08215]
[1641676463299,1.6440365,3042.3,3041.8,0.08215]
[1641676463499,0.66197,3042.2,3041.3,1.37022519]
[1641676463900,2.00479,3041.4,3041.1,1.6542932]
[1641676464099,2.00479,3041.4,3041.0,1.37022519]
[1641676464100,0.66197,3041.3,3041.0,1.37022519]
[1641676464598,0.66197,3041.3,3041.2,1.496]
[1641676464802,0.66197,3041.3,3041.1,1.496]
[1641676465701,3.73178943,3041.4,3041.1,1.496]
[1641676466301,0.66197,3041.3,3041.1,1.496]
[1641676466701,0.66197,3041.3,3040.8,1.496]
[1641676466902,0.66197,3041.3,3040.6,0.640787]
[1641676467304,0.66197,3041.3,3041.0,1.496]
[1641676467504,0.66197,3041.3,3040.7,1.496]
[1641676467904,2.00479,3040.8,3040.7,1.494]
[1641676468104,2.66676,3040.8,3040.7,1.494]
[1641676468504,14.16475999,3040.8,3039.1,6.65951839]
[1641676468706,1.6455515,3039.5,3039.1,6.8421932]
[1641676468905,1.64572482,3039.2,3039.1,1.1281932]
[1641676469105,3.14561378,3039.4,3039.1,0.1482932]
[1641676469307,1.5,3039.2,3038.9,1.4013112]
[1641676469507,1.5,3039.0,3038.9,1.4013112]
[1641676469708,1.64618538,3039.0,3038.2,3.84050358]
[1641676469909,2.00479,3038.7,3038.5,1.66376523]
[1641676470108,2.79169,3038.7,3038.5,1.66376523]
[1641676471206,2.79169,3038.7,3038.4,0.66197]
[1641676471606,0.91557736,3038.6,3038.4,0.66197]
[1641676471806,0.91557736,3038.6,3037.9,2.00479]
[1641676472008,0.91557736,3038.6,3038.0,0.66197]
[1641676472611,2.79169,3038.7,3038.5,1.5]
[1641676472808,2.75353096,3041.1,3038.6,0.66197]
[1641676473009,1.64520497,3040.2,3038.7,1.5]
[1641676473209,19.0092,3040.4,3038.6,0.9012]
[1641676473608,1.22319561,3040.1,3038.6,0.9012]
[1641676473809,1.22319561,3040.1,3038.7,1.5]
[1641676474012,2.00479,3039.4,3038.7,2.00479]
[1641676474210,2.00479,3039.7,3039.2,1.5]
[1641676474409,2.00479,3039.7,3039.2,0.6261]
[1641676474609,2.00479,3039.7,3039.3,0.66197]
[1641676475410,2.00479,3039.7,3039.3,2.16197]
[1641676476010,2.00479,3039.7,3039.3,2.66676]
[1641676476613,0.86243666,3039.6,3039.3,2.66676]
[1641676478718,2.00479,3039.7,3039.3,4.16676]
[1641676479114,2.00479,3039.7,3039.3,2.66676]
[1641676480513,1.64497222,3040.6,3039.6,15.67]
[1641676480714,2.6682137,3040.6,3039.9,1.5]
[1641676480914,1.02324148,3040.6,3040.0,1.302757]
[1641676481316,54.9061,3041.9,3040.0,1.302757]
[1641676481517,54.9061,3041.9,3040.2,1.5]
[1641676481716,3.16559201,3041.8,3040.3,1.5]
[1641676481915,3.16559201,3041.8,3040.8,1.5]
[1641676482116,1.52129599,3041.8,3041.0,2.00479]
[1641676482318,1.52129599,3041.8,3041.1,0.66197]
[1641676482517,1.52129599,3041.8,3041.0,2.00479]
[1641676482720,1.52129599,3041.8,3040.8,0.7106]
[1641676482721,1.5,3041.7,3040.7,2.00479]
[1641676482918,1.52129599,3041.8,3039.7,0.6924]
[1641676483118,1.52129599,3041.8,3039.4,0.08219]
[1641676483119,18.8222,3041.7,3040.2,1.5]
[1641676483319,0.5,3040.3,3040.2,1.5]
[1641676483518,0.5,3040.3,3040.2,2.802757]
[1641676484119,0.5,3040.3,3040.2,3.307547]
[1641676484518,0.5,3040.3,3040.2,2.66676]
[1641676485819,0.5,3040.3,3040.2,4.16676]
[1641676486321,0.5,3040.3,3040.2,18.33676]
[1641676487121,0.5,3040.3,3040.2,2.66676]
[1641676487521,2.00479,3041.0,3040.2,18.33676]
[1641676487723,2.00479,3041.2,3040.4,1.5]
[1641676487922,2.00479,3041.2,3040.5,0.66197]
[1641676488121,2.00479,3041.2,3040.7,2.00479]
[1641676488322,2.00479,3041.2,3040.7,2.645577]
[1641676488522,2.00479,3041.2,3040.8,0.66197]
[1641676493529,2.00479,3041.7,3040.9,15.67]
[1641676493731,2.00479,3041.7,3041.3,1.5]
[1641676493928,17.4115,3042.3,3041.4,0.640787]
[1641676494128,19.41629,3042.3,3041.6,2.00479]
[1641676494329,2.00479,3042.3,3041.7,0.66197]
[1641676494929,2.00479,3042.3,3042.0,1.5]
[1641676495130,2.00479,3042.3,3042.1,0.66197]
[1641676497733,37.45339,3043.0,3042.1,0.66197]
[1641676497933,2.00479,3043.0,3042.1,0.66197]
[1641676498135,2.00479,3043.0,3042.1,2.66676]
[1641676498537,1.21712063,3042.9,3042.1,2.66676]
[1641676498736,1.5,3042.7,3042.1,2.00479]
[1641676498936,2.07762063,3042.9,3042.1,2.00479]
[1641676499137,2.07762063,3042.9,3041.6,16.17479]
[1641676499535,1.64376626,3042.8,3041.6,16.17479]
[1641676500036,2.00479,3042.4,3041.6,16.17479]
[1641676500238,2.00479,3042.4,3041.8,14.17]
[1641676500440,2.00479,3043.0,3041.8,14.17]
[1641676500639,0.98842105,3042.8,3041.8,14.17]
[1641676500836,0.98842105,3042.8,3041.7,2.985267]
[1641676501037,0.98842105,3042.8,3041.7,15.655267]
[1641676501939,0.98842105,3042.8,3041.8,1.64335837]
[1641676502140,0.98842105,3042.8,3042.1,2.00479]
[1641676502340,0.98842105,3042.8,3042.2,0.66197]
[1641676502741,1.5,3042.4,3041.6,0.08217]
[1641676503242,1.5,3042.6,3040.6,1.5]
[1641676503440,1.5,3042.6,3040.8,1.5]
[1641676503642,1.31683132,3042.5,3040.8,1.5]
[1641676503839,1.5,3042.3,3040.4,0.08218]
[1641676504040,2.00479,3041.8,3041.1,2.00479]
[1641676504243,2.63149,3041.8,3041.1,2.00479]
[1641676504441,2.63149,3041.8,3041.2,0.66197]
[1641676505740,3.63115368,3041.8,3041.1,2.00479]
[1641676505945,5.13115368,3041.8,3041.1,2.00479]
[1641676506143,3.50479,3041.2,3040.3,2.00479]
[1641676506343,3.50479,3041.2,3040.0,0.35227273]
[1641676506552,1.6447125,3041.1,3040.0,0.35227273]
[1641676506744,2.5117125,3041.1,3040.0,0.35227273]
[1641676506943,0.867,3041.1,3040.0,0.35227273]
[1641676507144,0.867,3041.1,3040.0,14.52227273]
[1641676507345,0.867,3041.1,3040.0,16.02227273]
[1641676507749,1.16576144,3041.0,3040.0,0.35227273]
[1641676508145,2.00479,3040.3,3040.0,0.35227273]
[1641676508346,2.00479,3040.3,3040.0,1.01424273]
[1641676508949,2.00479,3040.3,3040.0,0.35227273]
[1641676510150,2.00479,3040.2,3040.0,0.35227273]
[1641676511351,3.64996249,3040.2,3039.0,0.08222]
[1641676511651,3.64996249,3040.2,3038.5,1.64517249]
[1641676511652,1.5,3040.0,3038.5,1.64517249]
[1641676511850,1.5,3040.0,3038.1,1.5]
[1641676512051,2.00479,3039.2,3038.5,2.00479]
[1641676512250,2.00479,3039.2,3038.7,14.17]
[1641676512751,1.56424568,3039.1,3038.8,0.66197]
[1641676514653,1.56424568,3039.1,3038.2,2.08705]
[1641676514853,1.56424568,3039.1,3038.2,2.00479]
[1641676516054,2.00479,3038.6,3038.2,2.00479]
[1641676516255,2.66859,3038.6,3038.2,2.00479]
[1641676516456,2.66859,3038.6,3037.8,0.38548951]
[1641676517858,1.54656613,3038.5,3037.8,0.38548951]
[1641676518056,2.00479,3037.9,3037.8,0.38548951]
[1641676518256,2.75629,3037.9,3037.8,0.38548951]
[1641676520063,2.00479,3037.9,3037.8,1.04745951]
[1641676520263,2.00479,3037.9,3037.8,15.21745951]
[1641676520863,2.00479,3038.6,3037.8,15.21745951]
[1641676521864,0.93538696,3038.5,3037.8,15.21745951]
[1641676522563,0.93538696,3038.5,3037.8,1.04745951]
[1641676522965,1.55448696,3038.5,3037.8,1.04745951]
[1641676524267,1.55448696,3038.5,3037.8,0.38548951]
[1641676524868,1.55448696,3038.5,3037.9,0.66197]
[1641676526270,2.00479,3038.0,3037.9,0.66197]
[1641676527669,2.00479,3038.0,3037.9,14.83197]
[1641676528270,2.00479,3038.0,3037.9,0.66197]
[1641676528869,2.00479,3038.0,3037.8,0.38548951]
[1641676528870,2.84719,3038.0,3037.8,0.38548951]
[1641676530071,0.8424,3038.0,3037.8,0.38548951]
[1641676530271,2.00479,3038.6,3037.8,2.39027951]
[1641676530871,1.25450316,3038.5,3037.8,2.39027951]
[1641676531672,1.95190316,3038.5,3037.8,2.39027951]
[1641676531872,1.95190316,3038.5,3037.8,0.38548951]
[1641676532275,2.00479,3037.9,3037.8,0.38548951]
[1641676535882,0.5,3037.9,3037.8,16.20094353]
[1641676536084,36.7644,3039.2,3037.8,16.20094353]
[1641676536281,36.7644,3039.2,3038.3,14.17]
[1641676536483,2.00479,3039.3,3038.3,14.17]
[1641676537485,2.00479,3039.3,3038.7,15.8150507]
[1641676537685,2.00479,3039.6,3039.0,14.17]
[1641676537885,2.00479,3039.6,3038.8,14.810787]
[1641676538085,2.00479,3039.6,3038.9,0.66197]
[1641676538284,2.00479,3039.6,3039.0,2.00479]
[1641676538685,2.00479,3040.0,3039.2,1.5]
[1641676538887,2.00479,3040.0,3039.0,4.25968105]
[1641676539184,2.00479,3040.0,3039.0,2.61479]
[1641676539986,2.00479,3040.0,3039.0,16.78479]
[1641676540188,2.00479,3040.0,3039.0,18.42969458]
[1641676540886,2.00479,3040.0,3039.0,4.25969458]
[1641676541589,2.00479,3040.0,3039.0,2.61479]
[1641676542391,2.00479,3040.0,3039.0,16.78479]
[1641676543089,2.00479,3040.0,3039.0,2.61479]
[1641676543290,2.00479,3040.0,3039.0,2.00479]
[1641676543490,0.5,3039.1,3039.0,2.00479]
[1641676543793,0.5,3039.1,3039.0,16.83676]
[1641676544290,35.6117,3040.4,3039.0,19.9814725]
[1641676544495,35.6117,3040.4,3039.4,14.17]
[1641676544691,18.1192,3041.1,3039.4,14.17]
[1641676545095,19.6192,3041.1,3039.4,0.08222]
[1641676545292,1.5,3040.6,3039.4,0.08222]
[1641676545492,2.1138,3040.6,3039.0,2.00479]
[1641676545691,0.6138,3040.6,3039.0,2.00479]
[1641676546393,2.00479,3039.8,3039.0,2.00479]
[1641676546692,2.00479,3039.8,3039.1,1.302757]
[1641676549995,4.72389884,3039.8,3038.7,3.73211506]
[1641676550197,4.08259884,3039.8,3038.7,2.00479]
[1641676550399,2.00479,3039.4,3038.7,2.00479]
[1641676551097,0.5,3039.2,3038.8,0.66197]
[1641676551297,0.5,3039.2,3038.8,1.302757]
[1641676551898,0.5,3039.2,3038.8,0.66197]
[1641676555203,0.5,3039.2,3038.7,2.00479]
[1641676555801,0.5,3039.2,3038.8,1.302757]
[1641676556800,0.5,3039.2,3038.8,0.66197]
[1641676556999,0.5,3039.2,3038.7,2.00479]
[1641676558002,0.5,3039.2,3038.7,2.645577]
[1641676559005,0.5,3039.2,3038.8,0.66197]
[1641676559203,0.5,3039.2,3038.9,14.17]
[1641676559609,0.5,3039.2,3039.0,0.66197]
[1641676560803,0.5,3039.2,3038.7,2.645577]
[1641676561004,0.5,3039.2,3038.7,3.307547]
[1641676562007,1.1689,3039.2,3038.7,2.00479]
[1641676562410,2.00479,3038.9,3037.8,2.47253951]
[1641676562611,2.00479,3038.9,3037.8,0.38548951]
[1641676562808,1.5,3038.1,3037.8,0.38548951]
[1641676563013,0.7053,3038.1,3036.9,3.30182469]
[1641676563208,2.35163173,3038.1,3036.9,1.65579105]
[1641676563408,0.7053,3038.1,3036.9,1.65579105]
[1641676564211,0.7053,3038.1,3037.0,14.17]
[1641676564410,2.00479,3037.3,3036.9,1.65579105]
[1641676564610,2.71869,3037.3,3037.2,0.640787]
[1641676565010,0.7139,3037.3,3037.2,2.802757]
[1641676565213,19.4351,3038.5,3037.2,4.44859829]
[1641676565411,1.42061045,3038.7,3037.6,14.17]
[1641676566212,1.42061045,3038.7,3037.9,14.17]
[1641676566411,2.00479,3038.6,3037.9,16.17479]
[1641676566811,2.00479,3038.6,3038.0,1.302757]
[1641676567011,2.00479,3038.6,3038.1,14.17]
[1641676567416,2.00479,3038.6,3038.2,0.66197]
[1641676569217,2.00479,3038.6,3038.1,14.17]
[1641676569418,2.83759,3038.6,3038.3,14.17]
[1641676569616,2.83759,3038.6,3038.0,0.640787]
[1641676569617,2.83759,3038.6,3038.0,14.810787]
[1641676570019,2.83759,3038.6,3038.2,14.17]
[1641676570219,0.8328,3038.6,3038.2,14.17]
[1641676570418,19.0424,3039.1,3038.5,16.17479]
[1641676570618,1.53979021,3039.2,3038.7,14.17]
[1641676570821,2.00479,3039.7,3038.9,14.17]
[1641676571019,2.05992865,3039.8,3038.9,15.67]
[1641676571621,2.05992865,3039.8,3038.9,14.17]
[1641676572220,0.32629959,3039.7,3038.9,14.17]
[1641676572420,0.32629959,3039.7,3039.4,2.00479]
[1641676572620,0.32629959,3039.7,3039.5,14.17]
[1641676572820,0.32629959,3039.7,3039.6,15.472757]
[1641676574121,0.32629959,3040.0,3039.6,15.472757]
[1641676575021,0.32629959,3040.0,3039.7,1.5]
[1641676575223,0.32629959,3040.0,3039.9,3.14431224]
[1641676575422,0.32629959,3040.4,3040.0,14.174]
[1641676575622,0.32629959,3040.4,3040.3,14.17]
[1641676575821,0.32629959,3040.4,3040.3,16.053457]
[1641676576521,0.32629959,3040.4,3040.3,20.063037]
[1641676577023,0.32629959,3040.4,3040.3,18.76028]
[1641676577222,0.32629959,3041.4,3040.3,18.76028]
[1641676577423,0.32629959,3041.4,3040.3,4.59028]
[1641676577625,0.32629959,3041.4,3040.3,4.00958]
[1641676578024,1.12074323,3041.3,3040.3,2.00479]
[1641676578226,1.69994323,3041.3,3040.3,2.00479]
[1641676578423,1.69594323,3041.3,3040.3,2.00479]
[1641676578626,2.00479,3040.7,3040.3,2.00479]
[1641676578823,2.00479,3040.7,3040.4,14.17]
[1641676579223,0.32629959,3041.4,3040.5,0.66197]
[1641676579825,0.32629959,3041.4,3040.6,14.17]
[1641676580127,0.32629959,3041.4,3040.3,2.00479]
[1641676580128,0.32629959,3041.4,3040.7,14.83197]
[1641676580525,2.00479,3041.3,3040.7,0.66197]
[1641676580728,3.55523209,3041.3,3040.7,0.66197]
[1641676580928,1.5,3040.8,3040.3,4.09177]
[1641676581130,1.5,3040.5,3039.4,1.64470438]
[1641676581427,2.2617,3040.5,3039.2,0.08222]
[1641676581627,2.2617,3040.5,3039.5,14.17]
[1641676581628,18.3921,3040.4,3039.5,14.17]
[1641676581828,0.7617,3040.5,3039.5,14.17]
[1641676582229,0.7617,3040.5,3039.5,15.67]
[1641676582428,17.845,3040.9,3039.5,15.67]
[1641676582627,2.00479,3040.1,3039.6,0.08222]
[1641676582827,2.00479,3040.1,3039.8,14.17]
[1641676583227,2.00479,3040.4,3039.8,14.17]
[1641676583429,2.00479,3040.4,3039.9,0.66197]
[1641676584230,2.00479,3040.4,3040.0,14.17]
[1641676584428,2.05992865,3041.4,3040.4,14.17]
[1641676584629,2.05992865,3041.4,3040.9,2.00479]
[1641676584828,2.05992865,3041.4,3041.1,15.81374195]
[1641676585530,2.75353096,3041.6,3041.3,17.31350962]
[1641676585729,0.28092865,3042.1,3041.4,0.08219]
[1641676586029,0.28092865,3042.1,3041.6,14.17]
[1641676586228,0.28092865,3042.1,3042.0,1.5]
[1641676586432,0.28092865,3042.1,3042.0,16.33197]
[1641676586631,0.28092865,3042.1,3042.0,18.84155]
[1641676586830,0.28092865,3042.1,3042.0,20.982337]
[1641676587232,2.78097293,3042.3,3042.0,20.982337]
[1641676587432,3.11750831,3042.5,3042.2,21.3128589]
[1641676587631,3.11750831,3042.5,3042.4,15.67]
[1641676587931,17.5314,3044.5,3042.4,16.4581]
[1641676587932,2.77821169,3043.7,3042.4,16.4581]
[1641676588130,2.77821169,3043.7,3042.8,14.17]
[1641676588533,2.77821169,3043.7,3043.6,4.00958]
[1641676588932,2.77821169,3043.7,3042.6,14.17]
[1641676589330,0.76,3043.7,3042.9,1.5]
[1641676589532,0.76,3043.7,3043.0,0.722927]
[1641676589735,0.66197,3043.6,3042.5,0.08214]
[1641676589933,0.66197,3043.6,3042.2,0.08215]
[1641676590131,0.66197,3043.6,3042.5,14.17]
[1641676590331,0.66197,3043.6,3042.4,1.64304245]
[1641676590531,0.5,3042.6,3042.4,1.64304245]
[1641676590732,0.5,3042.6,3042.3,2.00479]
[1641676590932,0.5,3042.6,3041.7,14.17]
[1641676591534,0.5,3042.6,3041.7,15.81341778]
[1641676591931,0.5,3042.6,3041.7,14.17]
[1641676592534,2.00479,3042.4,3041.7,14.17]
[1641676592735,2.00479,3042.4,3041.8,0.640787]
[1641676593035,2.66676,3042.4,3041.6,2.00479]
[1641676593236,1.5,3042.3,3041.6,2.00479]
[1641676593435,1.5,3041.7,3040.3,0.08218]
[1641676593635,2.102,3041.7,3040.3,0.08218]
[1641676593836,2.102,3041.7,3040.0,1.37788963]
[1641676594040,0.602,3041.7,3040.1,14.17]
[1641676594236,0.602,3041.7,3040.4,1.5]
[1641676594437,0.602,3041.7,3040.7,15.81396623]
[1641676594636,2.00479,3041.6,3040.9,2.00479]
[1641676594839,2.00479,3041.6,3041.0,0.640787]
[1641676595839,2.00479,3041.6,3041.1,1.64377437]
[1641676596237,2.00479,3041.6,3041.1,15.81377437]
[1641676596837,2.00479,3041.6,3041.1,1.64377437]
[1641676597738,2.00479,3041.6,3041.0,0.640787]
[1641676597941,2.81429,3041.6,3041.0,0.640787]
[1641676598538,2.81429,3041.6,3040.9,2.00479]
[1641676598539,0.66197,3041.5,3040.7,0.08219]
[1641676598738,0.66197,3041.5,3040.2,0.08219]
[1641676598739,1.5,3040.9,3040.2,0.08219]
[1641676598940,2.1648,3040.9,3039.4,5.49622]
[1641676599339,2.1648,3040.9,3039.6,14.17]
[1641676599740,1.5,3040.7,3039.5,14.17]
[1641676600239,2.1648,3040.9,3039.4,5.414]
[1641676600640,2.00479,3040.2,3039.5,17.81940512]
[1641676600842,2.62989,3040.2,3039.6,0.640787]
[1641676601543,3.29186,3040.2,3039.6,0.640787]
[1641676601746,3.29186,3040.2,3039.5,3.64940512]
[1641676601944,3.29186,3040.2,3039.5,2.00479]
[1641676602942,1.60287319,3040.1,3039.0,0.08223]
[1641676603143,1.60287319,3040.1,3038.7,0.08223]
[1641676603343,1.60287319,3040.1,3038.5,0.70028224]
[1641676603544,1.60287319,3040.1,3038.8,19.584]
[1641676603744,1.60287319,3040.1,3038.8,5.414]
[1641676603946,1.5,3039.1,3038.5,1.37788963]
[1641676604146,0.66197,3039.0,3038.5,1.37788963]
[1641676604748,2.00479,3038.6,3038.5,1.37788963]
[1641676604948,2.66676,3038.6,3038.5,1.37788963]
[1641676605447,2.66676,3038.6,3038.3,0.640787]
[1641676605846,0.84698089,3038.5,3038.3,0.640787]
[1641676606047,0.66197,3038.4,3038.0,14.17]
[1641676606247,1.53367,3038.4,3038.0,14.17]
[1641676607049,1.53367,3038.4,3038.1,0.640787]
[1641676607248,0.66197,3038.4,3038.1,0.640787]
[1641676608850,0.66197,3038.4,3038.1,14.810787]
[1641676609853,0.84698089,3038.5,3038.1,14.810787]
[1641676610053,17.3987,3039.4,3038.1,14.810787]
[1641676610253,0.5,3038.2,3038.1,14.810787]
[1641676610453,0.5,3038.2,3038.1,17.193667]
[1641676610654,0.0001,3038.2,3038.1,19.198457]
[1641676611054,0.0001,3038.2,3038.1,20.84352123]
[1641676611255,0.0001,3038.2,3038.1,19.198457]
[1641676611959,0.0001,3038.2,3038.1,27.198457]
[1641676612155,16.7877,3040.7,3038.4,0.6924]
[1641676612353,16.7877,3040.7,3039.2,1.5]
[1641676612554,16.7877,3040.7,3040.1,14.17]
[1641676612757,2.00479,3040.9,3040.3,14.17]
[1641676612955,2.66676,3040.9,3040.3,14.17]
[1641676613154,2.66676,3040.9,3040.2,2.00479]
[1641676614857,2.66676,3040.9,3040.3,14.17]
[1641676615056,2.00479,3040.9,3040.3,14.810787]
[1641676615257,0.8597535,3041.2,3040.3,14.810787]
[1641676615458,17.7474,3041.6,3040.5,14.17]
[1641676615658,17.7474,3041.6,3040.6,0.08219]
[1641676615858,17.7474,3041.6,3040.8,15.81391218]
[1641676616058,0.66197,3041.5,3040.8,1.64391218]
[1641676616258,0.805,3041.7,3040.6,1.7262238]
[1641676616459,1.5,3041.4,3040.3,0.08219]
[1641676616659,2.00479,3040.5,3039.5,2.00479]
[1641676616861,2.64529,3040.5,3039.5,2.00479]
[1641676617659,2.64529,3040.5,3039.6,14.17]
[1641676618061,1.10151239,3040.4,3039.6,14.17]
[1641676618261,1.10151239,3040.4,3039.5,2.00479]
[1641676618262,1.10151239,3040.4,3039.8,14.17]
[1641676618462,2.00479,3040.8,3039.8,14.17]
[1641676618661,2.00479,3040.8,3040.3,14.17]
[1641676618961,2.66676,3040.8,3040.2,3.64905358]
[1641676619162,2.66676,3040.8,3040.2,2.00479]
[1641676619364,2.66676,3040.8,3040.3,14.17]
[1641676619563,2.66676,3040.8,3040.2,2.00479]
[1641676620162,4.86586,3040.8,3040.2,2.00479]
[1641676620361,4.86586,3040.8,3039.5,2.00479]
[1641676620561,1.5,3040.5,3039.5,2.00479]
[1641676620762,2.00479,3040.2,3039.5,2.00479]
[1641676620963,0.66197,3040.1,3039.5,2.00479]
[1641676621162,1.58097,3040.1,3039.5,2.00479]
[1641676621765,1.58097,3040.1,3039.5,2.645577]
[1641676621965,1.19859008,3040.0,3039.6,14.17]
[1641676622168,2.00479,3040.2,3039.7,15.81453128]
[1641676622367,2.00479,3040.2,3039.9,1.64443122]
[1641676622567,0.66197,3040.3,3039.9,1.64443122]
[1641676622767,2.00479,3040.8,3039.9,3.64922122]
[1641676623975,2.9968499,3040.8,3039.9,3.64920229]
[1641676624379,2.9968499,3040.8,3040.0,14.17]
[1641676624577,0.66197,3040.7,3039.9,3.64920229]
[1641676624782,0.66197,3040.7,3039.9,5.65399229]
[1641676625279,1.5,3040.3,3039.7,1.72675668]
[1641676625478,2.16197,3040.2,3038.8,1.6450047]
[1641676626082,1.14101094,3040.1,3038.8,1.6450047]
[1641676626279,1.83341094,3040.1,3038.8,1.6450047]
[1641676626679,2.00479,3039.5,3038.8,1.6450047]
[1641676626880,0.66197,3039.4,3038.7,2.00479]
[1641676627080,2.28442545,3039.4,3038.7,2.00479]
[1641676627482,2.28442545,3039.4,3038.5,14.17]
[1641676627681,2.28442545,3039.4,3038.4,3.65003286]
[1641676627882,2.28442545,3039.4,3038.7,1.64504258]
[1641676628082,2.28442545,3039.4,3038.5,1.64515084]
[1641676628682,2.00479,3039.1,3038.5,1.64515084]
[1641676628882,0.66197,3039.0,3038.5,1.64515084]
[1641676629085,1.64754891,3039.0,3038.4,2.00479]
[1641676629483,1.64754891,3039.0,3038.4,16.17479]
[1641676629683,1.64754891,3039.0,3038.4,16.815577]
[1641676630786,1.64754891,3039.0,3038.4,16.897837]
[1641676630985,1.64754891,3039.0,3038.4,2.727837]
[1641676631285,1.64754891,3039.0,3038.4,2.08705]
[1641676631886,1.64754891,3039.0,3038.4,2.00479]
[1641676632086,1.5,3038.7,3038.0,3.73247153]
[1641676632287,1.5,3038.2,3037.6,1.37352282]
[1641676632489,1.97298711,3038.6,3037.6,1.37352282]
[1641676632490,1.5,3037.8,3037.6,1.37352282]
[1641676632687,2.00479,3037.7,3037.6,1.37152282]
[1641676632888,2.66676,3037.7,3037.6,1.37152282]
[1641676633089,2.66676,3037.7,3037.4,1.64822739]
[1641676633288,4.16676,3037.7,3037.1,1.37152282]
[1641676633490,2.66676,3037.7,3037.1,1.37152282]
[1641676634689,2.66676,3037.7,3037.0,14.17]
[1641676635092,2.66676,3037.7,3037.2,14.17]
[1641676635093,2.00479,3037.7,3037.2,14.17]
[1641676635289,2.00479,3037.7,3037.4,14.17]
[1641676635892,2.00479,3037.7,3037.2,0.0823]
[1641676636190,2.00479,3037.7,3037.1,0.640787]
[1641676636393,1.54807,3037.8,3037.1,0.640787]
[1641676636590,0.8861,3037.8,3037.1,0.640787]
[1641676636792,0.8861,3037.8,3037.3,2.00479]